[Event "EYTCC U18 Open 2019"]
[Site "Pardubice"]
[Date "2019.07.14"]
[Round "4.15"]
[White "Rozen, Eytan"]
[Black "Viczencz, Peter"]
[Result "1-0"]
[ECO "A13"]
[WhiteElo "2260"]
[BlackElo "2014"]
[Annotator "NA"]
[PlyCount "111"]
[EventDate "2019.07.11"]
[EventType "swiss"]
[EventCountry "CZE"]
[SourceTitle "playchess.com"]
[Source "ChessBase"]
[SourceQuality "1"]
[WhiteTeam "Israel"]
[BlackTeam "Slovakia"]
[WhiteTeamCountry "ISR"]
[BlackTeamCountry "SVK"]
[TimeControl "40/5400+30:1800+30"]

1. c4 {[%emt 0:00:00]} e6 {[%emt 0:00:00]} 2. Nf3 {[%emt 0:00:00]} Nf6 {[%emt 0:00:00]} 3. g3 {[%emt 0:00:00]} d5 {[%emt 0:00:32]} 4. Bg2 {[%emt 0:00:00]} Be7 {[%emt 0:00:06]} 5. d4 {[%emt 0:00:11]} O-O {[%emt 0:00:07]} 6. O-O {[%emt 0:00:06]} h6 {[%emt 0:00:14]} 7. Nc3 {[%emt 0:01:15]} dxc4 {[%emt 0:00:55]} 8. Ne5 {[%emt 0:00:30]} c5 {[%emt 0:00:42]} 9. dxc5 {[%emt 0:00:28]} Bxc5 {[%emt 0:00:14]} 10. Nxc4 {[%emt 0:00:27]} Nc6 {[%emt 0:04:08]} 11. Bf4 {[%emt 0:01:08]} Qe7 {[%emt 0:13:51]} 12. Bd6 {[%emt 0:01:42]} Bxd6 {[%emt 0:00:20]} 13. Qxd6 {[%emt 0:00:07]} Qxd6 {[%emt 0:01:56]} 14. Nxd6 {[%emt 0:00:10]} Rb8 {[%emt 0:00:27]} 15. Rfd1 {[%emt 0:01:50]} Rd8 {[%emt 0:03:17]} 16. Rac1 {[%emt 0:01:36]} Kf8 {[%emt 0:04:17]} 17. Rd2 {[%emt 0:20:55]} Ke7 {[%emt 0:08:09]} 18. Rcd1 {[%emt 0:01:07]} Nd7 {[%emt 0:00:27]} 19. Ncb5 {[%emt 0:04:04]} Nb6 {[%emt 0:12:03]} 20. Bxc6 {[%emt 0:11:07]} bxc6 {[%emt 0:00:34]} 21. Nxa7 {[%emt 0:00:13]} Bd7 {[%emt 0:00:24]} 22. Nxf7 {[%emt 0:00:23]} Kxf7 {[%emt 0:02:56]} 23. Nxc6 {[%emt 0:00:09]} Bxc6 {[%emt 0:00:05]} 24. Rxd8 {[%emt 0:00:07]} Rb7 {[%emt 0:00:40]} 25. b3 {[%emt 0:02:22]} Bd5 {[%emt 0:01:32]} 26. f3 {[%emt 0:00:41]} Ke7 {[%emt 0:00:57]} 27. Rg8 {[%emt 0:00:33]} Kf7 {[%emt 0:00:09]} 28. Rh8 {[%emt 0:00:18]} Nd7 {[%emt 0:02:56]} 29. e4 {[%emt 0:03:46]} Bc6 {[%emt 0:00:06]} 30. Rc8 {[%emt 0:01:12]} Ne5 {[%emt 0:01:06]} 31. Kf2 {[%emt 0:00:45]} Bd7 {[%emt 0:00:37]} 32. Rc5 {[%emt 0:01:42]} Kf6 {[%emt 0:01:55]} 33. h3 {[%emt 0:01:13]} Nf7 {[%emt 0:02:00]} 34. Rdc1 {[%emt 0:05:58]} Rb6 {[%emt 0:03:53]} 35. Ke3 {[%emt 0:02:23]} Ke7 {[%emt 0:08:28]} 36. e5 {[%emt 0:02:49]} Nd8 {[%emt 0:01:54]} 37. R1c3 {[%emt 0:07:00]} Nc6 {[%emt 0:00:23]} 38. a3 {[%emt 0:00:44]} Ke8 {[%emt 0:01:01]} 39. a4 {[%emt 0:04:45]} Ne7 {[%emt 0:01:19]} 40. a5 {[%emt 0:00:36]} Ra6 {[%emt 0:00:12]} 41. R3c4 {[%emt 0:31:35]} Nd5+ {[%emt 0:30:30]} 42. Kd2 {[%emt 0:03:44]} Ke7 {[%emt 0:00:40]} 43. f4 {[%emt 0:01:35]} Kf7 {[%emt 0:01:52]} 44. Rd4 {[%emt 0:03:47]} Ra7 {[%emt 0:00:16]} 45. b4 {[%emt 0:05:53]} Be8 {[%emt 0:01:53]} 46. g4 {[%emt 0:05:53]} Bd7 {[%emt 0:00:28]} 47. Rdxd5 {[%emt 0:05:27]} exd5 {[%emt 0:00:10]} 48. f5 {[%emt 0:00:28]} Ke7 {[%emt 0:00:46]} 49. Rxd5 {[%emt 0:00:45]} Bc6 {[%emt 0:00:25]} 50. Rd6 {[%emt 0:00:00]} Bg2 {[%emt 0:00:00]} 51. h4 {[%emt 0:00:00]} Bh3 {[%emt 0:00:00]} 52. Rg6 {[%emt 0:00:00]} Kf7 {[%emt 0:00:00]} 53. h5 {[%emt 0:00:00]} Bf1 {[%emt 0:00:00]} 54. e6+ {[%emt 0:00:00]} Ke8 {[%emt 0:00:00]} 55. f6 {[%emt 0:00:00]} gxf6 {[%emt 0:00:00]} 56. Rg8+ {[%emt 0:00:00]} 1-0

[Event "EYTCC U18 Open 2019"]
[Site "Pardubice"]
[Date "2019.07.14"]
[Round "4.16"]
[White "Matis, Tibor"]
[Black "Gleizer, Adar"]
[Result "0-1"]
[ECO "C44"]
[WhiteElo "1862"]
[BlackElo "1748"]
[Annotator "NA"]
[PlyCount "114"]
[EventDate "2019.07.11"]
[EventType "swiss"]
[EventCountry "CZE"]
[SourceTitle "playchess.com"]
[Source "ChessBase"]
[SourceQuality "1"]
[WhiteTeam "Slovakia"]
[BlackTeam "Israel"]
[WhiteTeamCountry "SVK"]
[BlackTeamCountry "ISR"]
[TimeControl "40/5400+30:1800+30"]

1. e4 {[%emt 0:00:00]} e5 {[%emt 0:00:00]} 2. Nf3 {[%emt 0:00:00]} Nc6 {[%emt 0:00:04]} 3. d4 {[%emt 0:00:56]} exd4 {[%emt 0:00:20]} 4. Nxd4 {[%emt 0:00:07]} Nf6 {[%emt 0:00:33]} 5. Nc3 {[%emt 0:00:14]} Bb4 {[%emt 0:00:44]} 6. Bg5 {[%emt 0:06:37]} h6 {[%emt 0:01:16]} 7. Nxc6 {[%emt 0:05:34]} bxc6 {[%emt 0:00:18]} 8. Bxf6 {[%emt 0:00:12]} Qxf6 {[%emt 0:00:13]} 9. Qd2 {[%emt 0:00:04]} d5 {[%emt 0:14:59]} 10. exd5 {[%emt 0:02:47]} cxd5 {[%emt 0:00:36]} 11. Qe3+ {[%emt 0:12:55]} Kf8 {[%emt 0:06:56]} 12. Rd1 {[%emt 0:04:54]} Bg4 {[%emt 0:03:58]} 13. Rd4 {[%emt 0:12:45]} Re8 {[%emt 0:08:15]} 14. Rxb4 {[%emt 0:02:08]} Rxe3+ {[%emt 0:03:32]} 15. fxe3 {[%emt 0:00:09]} Bd7 {[%emt 0:01:19]} 16. Bd3 {[%emt 0:08:18]} g6 {[%emt 0:04:31]} 17. Rf4 {[%emt 0:02:32]} Qe5 {[%emt 0:10:48]} 18. O-O {[%emt 0:00:15]} f5 {[%emt 0:01:16]} 19. e4 {[%emt 0:06:11]} dxe4 {[%emt 0:01:17]} 20. Rxe4 {[%emt 0:03:29]} Qc5+ {[%emt 0:01:29]} 21. Kh1 {[%emt 0:00:09]} Kg7 {[%emt 0:01:19]} 22. Rc4 {[%emt 0:02:23]} Qe5 {[%emt 0:01:41]} 23. Rd1 {[%emt 0:02:43]} Be6 {[%emt 0:12:34]} 24. Rc6 {[%emt 0:03:38]} Rd8 {[%emt 0:00:15]} 25. a4 {[%emt 0:01:29]} Rd7 {[%emt 0:01:28]} 26. Nb5 {[%emt 0:01:47]} Bd5 {[%emt 0:07:07]} 27. Rc5 {[%emt 0:01:38]} Qe7 {[%emt 0:00:27]} 28. b4 {[%emt 0:00:45]} c6 {[%emt 0:01:30]} 29. Nc3 {[%emt 0:01:46]} Qh4 {[%emt 0:05:01]} 30. Nxd5 {[%emt 0:00:51]} cxd5 {[%emt 0:03:12]} 31. Rb5 {[%emt 0:02:38]} Re7 {[%emt 0:01:50]} 32. h3 {[%emt 0:08:16]} Re1+ {[%emt 0:00:47]} 33. Rxe1 {[%emt 0:00:09]} Qxe1+ {[%emt 0:00:05]} 34. Kh2 {[%emt 0:00:06]} Qe5+ {[%emt 0:00:05]} 35. Kg1 {[%emt 0:01:27]} Qa1+ {[%emt 0:00:10]} 36. Kh2 {[%emt 0:01:41]} Qxa4 {[%emt 0:00:14]} 37. Rxd5 {[%emt 0:01:08]} Qxb4 {[%emt 0:01:17]} 38. Rd7+ {[%emt 0:00:27]} Kf6 {[%emt 0:00:11]} 39. Rxa7 {[%emt 0:00:15]} Qf4+ {[%emt 0:00:51]} 40. Kh1 {[%emt 0:00:09]} Qe3 {[%emt 0:03:17]} 41. Ra6+ {[%emt 0:30:10]} Kg5 {[%emt 0:30:30]} 42. Kh2 {[%emt 0:02:16]} Qe5+ {[%emt 0:03:55]} 43. Kg1 {[%emt 0:00:23]} Qe1+ {[%emt 0:00:00]} 44. Kh2 {[%emt 0:00:00]} Kh5 {[%emt 0:00:00]} 45. Bc4 {[%emt 0:00:00]} Qe5+ {[%emt 0:00:00]} 46. Kh1 {[%emt 0:00:00]} g5 {[%emt 0:00:00]} 47. Re6 {[%emt 0:00:00]} Qa5 {[%emt 0:00:00]} 48. Bd3 {[%emt 0:00:00]} Kh4 {[%emt 0:00:00]} 49. Re3 {[%emt 0:02:41]} Qa1+ {[%emt 0:00:00]} 50. Kh2 {[%emt 0:00:22]} Qc1 {[%emt 0:00:00]} 51. Rf3 {[%emt 0:00:43]} f4 {[%emt 0:00:00]} 52. Rf1 {[%emt 0:03:02]} Qe3 {[%emt 0:00:00]} 53. Rf3 {[%emt 0:00:05]} Qd2 {[%emt 0:00:00]} 54. Kg1 {[%emt 0:01:44]} h5 {[%emt 0:00:00]} 55. Rf2 {[%emt 0:00:33]} Qc1+ {[%emt 0:00:00]} 56. Rf1 {[%emt 0:00:09]} Qe3+ {[%emt 0:00:08]} 57. Rf2 {[%emt 0:00:33]} Kg3 {[%emt 0:00:39]} 0-1

[Event "EYTCC U18 Open 2019"]
[Site "Pardubice"]
[Date "2019.07.14"]
[Round "4.25"]
[White "Ivic, Velimir"]
[Black "Blohberger, Felix"]
[Result "1-0"]
[ECO "C60"]
[WhiteElo "2510"]
[BlackElo "2476"]
[Annotator "ChessBase"]
[PlyCount "109"]
[EventDate "2019.07.11"]
[EventType "swiss"]
[EventCountry "CZE"]
[SourceTitle "playchess.com"]
[Source "ChessBase"]
[SourceQuality "1"]
[WhiteTeam "Serbia"]
[BlackTeam "Austria"]
[WhiteTeamCountry "SRB"]
[BlackTeamCountry "AUT"]
[TimeControl "40/5400+30:1800+30"]

1. e4 {[%emt 0:00:00]} e5 {[%emt 0:00:00]} 2. Nf3 {[%emt 0:00:00]} Nc6 {[%emt 0:00:00]} 3. Bb5 {[%emt 0:00:00]} g6 {[%emt 0:00:00]} 4. O-O {[%emt 0:00:11]} Bg7 {[%emt 0:01:01]} 5. c3 {[%emt 0:00:25]} a6 {[%emt 0:01:12]} 6. Bc4 {[%emt 0:00:48]} Nge7 {[%emt 0:05:17]} 7. d4 {[%emt 0:00:33]} exd4 {[%emt 0:09:56]} 8. cxd4 {[%emt 0:00:11]} b5 {[%emt 0:00:09]} 9. Bd3 {[%emt 0:00:10]} d6 {[%emt 0:05:56]} 10. d5 {[%emt 0:01:30]} Na5 {[%emt 0:04:51]} 11. Nc3 {[%emt 0:23:10]} O-O {[%emt 0:04:44]} 12. Bg5 {[%emt 0:14:53]} c5 {[%emt 0:15:12]} 13. dxc6 {[%emt 0:07:08]} Naxc6 {[%emt 0:01:35]} 14. Qd2 {[%emt 0:02:01]} Be6 {[%emt 0:06:32]} 15. Rfe1 {[%emt 0:05:31]} Qd7 {[%emt 0:02:58]} 16. Bh6 {[%emt 0:02:51]} Ne5 {[%emt 0:08:36]} 17. Be2 {[%emt 0:05:14]} b4 {[%emt 0:05:17]} 18. Nd1 {[%emt 0:02:20]} Nxf3+ {[%emt 0:00:57]} 19. Bxf3 {[%emt 0:00:10]} Bxh6 {[%emt 0:01:05]} 20. Qxh6 {[%emt 0:00:04]} d5 {[%emt 0:01:23]} 21. Ne3 {[%emt 0:07:48]} dxe4 {[%emt 0:09:42]} 22. Bxe4 {[%emt 0:00:19]} Rac8 {[%emt 0:04:17]} 23. Rad1 {[%emt 0:03:51]} Qc7 {[%emt 0:02:35]} 24. Bf3 {[%emt 0:10:57]} Nf5 {[%emt 0:01:23]} 25. Nxf5 {[%emt 0:00:13]} Bxf5 {[%emt 0:00:05]} 26. h4 {[%emt 0:03:25]} Rfe8 {[%emt 0:04:21]} 27. Qd2 {[%emt 0:03:23]} Qc4 {[%emt 0:02:02]} 28. h5 {[%emt 0:01:06]} gxh5 {[%emt 0:01:28]} 29. Bxh5 {[%emt 0:02:03]} Bg6 {[%emt 0:00:11]} 30. Bf3 {[%emt 0:00:45]} Qxa2 {[%emt 0:00:47]} 31. Qxb4 {[%emt 0:00:30]} Rxe1+ {[%emt 0:00:58]} 32. Rxe1 {[%emt 0:00:16]} a5 {[%emt 0:00:34]} 33. Qb5 {[%emt 0:02:12]} Rd8 {[%emt 0:00:52]} 34. Qg5 {[%emt 0:00:56]} Rf8 {[%emt 0:00:26]} 35. Qb5 {[%emt 0:00:33]} Rd8 {[%emt 0:00:11]} 36. Kh2 {[%emt 0:01:38]} a4 {[%emt 0:00:43]} 37. Re3 {[%emt 0:00:51]} Qb1 {[%emt 0:00:38]} 38. Qb6 {[%emt 0:00:26]} Rf8 {[%emt 0:00:25]} 39. Ra3 {[%emt 0:00:16]} Bc2 {[%emt 0:00:33]} 40. Bc6 {[%emt 0:00:45]} Bg6 {[%emt 0:00:36]} 41. Rxa4 {[%emt 0:02:40]} Qf5 {[%emt 0:07:46]} 42. Qd4 {[%emt 0:03:38]} Qh5+ {[%emt 0:03:52]} 43. Kg1 {[%emt 0:01:10]} Qg5 {[%emt 0:02:48]} 44. Qc3 {[%emt 0:04:58]} Qd8 {[%emt 0:04:08]} 45. Rd4 {[%emt 0:03:45]} Qf6 {[%emt 0:04:59]} 46. b4 {[%emt 0:01:41]} Kg7 {[%emt 0:01:40]} 47. Qc5 {[%emt 0:00:36]} h5 {[%emt 0:01:50]} 48. b5 {[%emt 0:00:35]} Rc8 {[%emt 0:03:49]} 49. Rd6 {[%emt 0:01:16]} Qa1+ {[%emt 0:02:00]} 50. Kh2 {[%emt 0:00:05]} Qb2 {[%emt 0:01:16]} 51. f4 {[%emt 0:07:05]} Qb1 {[%emt 0:01:10]} 52. Qe5+ {[%emt 0:01:23]} Kh7 {[%emt 0:00:33]} 53. Rf6 {[%emt 0:00:30]} Qb4 {[%emt 0:00:39]} 54. f5 {[%emt 0:00:17]} Qh4+ {[%emt 0:00:29]} 55. Kg1 {[%emt 0:00:04]} 1-0

[Event "EYTCC U18 Open 2019"]
[Site "Pardubice"]
[Date "2019.07.14"]
[Round "4.27"]
[White "Budisavljevic, Luka"]
[Black "Leisch, Lukas"]
[Result "1/2-1/2"]
[ECO "A05"]
[WhiteElo "2351"]
[BlackElo "2327"]
[Annotator "NA"]
[PlyCount "118"]
[EventDate "2019.07.11"]
[EventType "swiss"]
[EventCountry "CZE"]
[SourceTitle "playchess.com"]
[Source "ChessBase"]
[SourceQuality "1"]
[WhiteTeam "Serbia"]
[BlackTeam "Austria"]
[WhiteTeamCountry "SRB"]
[BlackTeamCountry "AUT"]
[TimeControl "40/5400+30:1800+30"]

1. Nf3 {[%emt 0:00:00]} Nf6 {[%emt 0:00:17]} 2. c4 {[%emt 0:00:00]} e6 {[%emt 0:00:34]} 3. e3 {[%emt 0:00:34]} d5 {[%emt 0:00:31]} 4. d4 {[%emt 0:00:48]} b6 {[%emt 0:00:20]} 5. b3 {[%emt 0:01:03]} Bd6 {[%emt 0:00:15]} 6. Ba3 {[%emt 0:01:44]} Bxa3 {[%emt 0:02:29]} 7. Nxa3 {[%emt 0:00:06]} O-O {[%emt 0:00:10]} 8. Bd3 {[%emt 0:00:48]} Bb7 {[%emt 0:01:11]} 9. O-O {[%emt 0:00:53]} Qe7 {[%emt 0:01:12]} 10. Nb5 {[%emt 0:01:05]} a6 {[%emt 0:02:55]} 11. Nc3 {[%emt 0:02:51]} Nbd7 {[%emt 0:05:54]} 12. Rc1 {[%emt 0:01:11]} c5 {[%emt 0:06:50]} 13. cxd5 {[%emt 0:01:09]} exd5 {[%emt 0:04:00]} 14. Ne2 {[%emt 0:01:09]} Rfd8 {[%emt 0:05:47]} 15. Ng3 {[%emt 0:01:37]} g6 {[%emt 0:02:22]} 16. Qe2 {[%emt 0:03:01]} Ne4 {[%emt 0:03:30]} 17. Qb2 {[%emt 0:02:46]} Rac8 {[%emt 0:15:02]} 18. Rfd1 {[%emt 0:02:12]} h5 {[%emt 0:04:27]} 19. Ne2 {[%emt 0:09:38]} Ndf6 {[%emt 0:09:46]} 20. Ne5 {[%emt 0:07:41]} Re8 {[%emt 0:00:13]} 21. Nc3 {[%emt 0:11:49]} Nxc3 {[%emt 0:02:59]} 22. Rxc3 {[%emt 0:00:21]} cxd4 {[%emt 0:06:08]} 23. Rxc8 {[%emt 0:02:34]} Rxc8 {[%emt 0:01:12]} 24. Qxd4 {[%emt 0:03:41]} Qe6 {[%emt 0:03:14]} 25. h3 {[%emt 0:04:51]} Ne8 {[%emt 0:03:21]} 26. Nf3 {[%emt 0:03:45]} Ng7 {[%emt 0:01:55]} 27. Qf4 {[%emt 0:03:22]} Qe7 {[%emt 0:01:50]} 28. Qh6 {[%emt 0:08:32]} Ne6 {[%emt 0:00:27]} 29. Bxg6 {[%emt 0:01:13]} fxg6 {[%emt 0:00:57]} 30. Qxg6+ {[%emt 0:00:04]} Kf8 {[%emt 0:02:13]} 31. Qxh5 {[%emt 0:08:10]} Qg7 {[%emt 0:02:24]} 32. Nd4 {[%emt 0:01:28]} Nxd4 {[%emt 0:05:00]} 33. Rxd4 {[%emt 0:00:07]} Ke7 {[%emt 0:00:20]} 34. Rg4 {[%emt 0:05:09]} Qa1+ {[%emt 0:00:21]} 35. Kh2 {[%emt 0:00:01]} Kd6 {[%emt 0:01:15]} 36. Qf7 {[%emt 0:01:25]} Bc6 {[%emt 0:01:47]} 37. b4 {[%emt 0:05:34]} Qe5+ {[%emt 0:02:09]} 38. f4 {[%emt 0:01:06]} Qe7 {[%emt 0:00:02]} 39. Rg6+ {[%emt 0:00:22]} Kd7 {[%emt 0:00:03]} 40. Qf5+ {[%emt 0:00:23]} Kd8 {[%emt 0:01:10]} 41. Rh6 {[%emt 0:11:45]} Bd7 {[%emt 0:15:34]} 42. Qxd5 {[%emt 0:12:04]} Kc7 {[%emt 0:01:26]} 43. Qd3 {[%emt 0:01:28]} Re8 {[%emt 0:04:56]} 44. Rh7 {[%emt 0:03:22]} Qd6 {[%emt 0:01:31]} 45. Qc4+ {[%emt 0:00:34]} Qc6 {[%emt 0:03:23]} 46. Qxa6 {[%emt 0:03:15]} Rxe3 {[%emt 0:01:43]} 47. Qa7+ {[%emt 0:00:06]} Kc8 {[%emt 0:00:50]} 48. Rh8+ {[%emt 0:01:49]} Re8 {[%emt 0:02:51]} 49. Rxe8+ {[%emt 0:00:31]} Bxe8 {[%emt 0:00:01]} 50. Qe7 {[%emt 0:00:16]} Bd7 {[%emt 0:00:41]} 51. h4 {[%emt 0:02:05]} Qc4 {[%emt 0:01:34]} 52. Qf8+ {[%emt 0:00:31]} Kc7 {[%emt 0:00:24]} 53. h5 {[%emt 0:02:26]} Qe2 {[%emt 0:00:25]} 54. h6 {[%emt 0:01:06]} Qh5+ {[%emt 0:00:05]} 55. Kg1 {[%emt 0:00:06]} Qd1+ {[%emt 0:00:24]} 56. Kf2 {[%emt 0:00:02]} Qc2+ {[%emt 0:00:41]} 57. Kg1 {[%emt 0:00:47]} Qd1+ {[%emt 0:00:06]} 58. Kh2 {[%emt 0:00:07]} Qh5+ {[%emt 0:00:06]} 59. Kg1 {[%emt 0:01:03]} Qd1+ {[%emt 0:00:05]} 1/2-1/2

[Event "EYTCC U18 Open 2019"]
[Site "Pardubice"]
[Date "2019.07.14"]
[Round "4.28"]
[White "Morgunov, Marc"]
[Black "Omorjan, Dejan"]
[Result "1-0"]
[ECO "B11"]
[WhiteElo "2314"]
[BlackElo "2317"]
[Annotator "NA"]
[PlyCount "119"]
[EventDate "2019.07.11"]
[EventType "swiss"]
[EventCountry "CZE"]
[SourceTitle "playchess.com"]
[Source "ChessBase"]
[SourceQuality "1"]
[WhiteTeam "Austria"]
[BlackTeam "Serbia"]
[WhiteTeamCountry "AUT"]
[BlackTeamCountry "SRB"]
[TimeControl "40/5400+30:1800+30"]

1. e4 {[%emt 0:00:00]} c6 {[%emt 0:00:00]} 2. Nc3 {[%emt 0:00:03]} d5 {[%emt 0:00:00]} 3. Nf3 {[%emt 0:00:13]} Bg4 {[%emt 0:00:12]} 4. h3 {[%emt 0:00:06]} Bxf3 {[%emt 0:00:12]} 5. Qxf3 {[%emt 0:00:06]} e6 {[%emt 0:00:17]} 6. Be2 {[%emt 0:00:14]} Nd7 {[%emt 0:02:10]} 7. O-O {[%emt 0:00:18]} Ngf6 {[%emt 0:02:00]} 8. d4 {[%emt 0:00:12]} dxe4 {[%emt 0:06:05]} 9. Nxe4 {[%emt 0:00:10]} Nxe4 {[%emt 0:01:02]} 10. Qxe4 {[%emt 0:00:04]} Nf6 {[%emt 0:02:15]} 11. Qd3 {[%emt 0:00:06]} Qc7 {[%emt 0:01:51]} 12. c3 {[%emt 0:06:26]} Bd6 {[%emt 0:02:40]} 13. Re1 {[%emt 0:05:30]} O-O-O {[%emt 0:07:57]} 14. b4 {[%emt 0:08:26]} e5 {[%emt 0:12:33]} 15. Be3 {[%emt 0:13:31]} Kb8 {[%emt 0:06:08]} 16. Bf3 {[%emt 0:20:42]} h6 {[%emt 0:14:10]} 17. dxe5 {[%emt 0:08:23]} Bxe5 {[%emt 0:02:31]} 18. Bxa7+ {[%emt 0:02:52]} Kxa7 {[%emt 0:06:23]} 19. Qe3+ {[%emt 0:00:10]} Bd4 {[%emt 0:02:51]} 20. cxd4 {[%emt 0:00:09]} Qb6 {[%emt 0:07:50]} 21. Qa3+ {[%emt 0:04:58]} Qa6 {[%emt 0:04:50]} 22. Qxa6+ {[%emt 0:01:53]} Kxa6 {[%emt 0:00:09]} 23. Re7 {[%emt 0:00:12]} Rhf8 {[%emt 0:02:51]} 24. b5+ {[%emt 0:06:04]} cxb5 {[%emt 0:02:12]} 25. Bxb7+ {[%emt 0:00:22]} Kb6 {[%emt 0:04:31]} 26. Bf3 {[%emt 0:01:05]} Rxd4 {[%emt 0:01:18]} 27. Rb7+ {[%emt 0:00:27]} Kc5 {[%emt 0:05:51]} 28. Rc1+ {[%emt 0:02:11]} Rc4 {[%emt 0:00:37]} 29. Rb1 {[%emt 0:00:10]} Ne4 {[%emt 0:01:34]} 30. R7xb5+ {[%emt 0:07:44]} Kd6 {[%emt 0:00:45]} 31. Rd1+ {[%emt 0:00:03]} Kc7 {[%emt 0:00:37]} 32. Re5 {[%emt 0:00:30]} f5 {[%emt 0:00:43]} 33. Re7+ {[%emt 0:00:11]} Kb6 {[%emt 0:00:23]} 34. Rxg7 {[%emt 0:00:31]} Rc2 {[%emt 0:00:30]} 35. Rg6+ {[%emt 0:01:10]} Kc5 {[%emt 0:00:17]} 36. Rxh6 {[%emt 0:01:56]} Rxa2 {[%emt 0:00:17]} 37. Bxe4 {[%emt 0:01:31]} fxe4 {[%emt 0:00:04]} 38. Rh5+ {[%emt 0:00:17]} Kc6 {[%emt 0:01:02]} 39. Rf1 {[%emt 0:00:09]} Kd6 {[%emt 0:00:55]} 40. Rg5 {[%emt 0:01:30]} Rd2 {[%emt 0:00:30]} 41. Re1 {[%emt 0:30:39]} Rf4 {[%emt 0:05:41]} 42. Rg4 {[%emt 0:00:00]} Rxg4 {[%emt 0:02:22]} 43. hxg4 {[%emt 0:00:00]} Ke5 {[%emt 0:00:32]} 44. g3 {[%emt 0:00:00]} Kd4 {[%emt 0:02:21]} 45. Kf1 {[%emt 0:00:00]} Ra2 {[%emt 0:02:42]} 46. Re2 {[%emt 0:00:00]} Ra6 {[%emt 0:04:42]} 47. Rd2+ {[%emt 0:00:00]} Ke5 {[%emt 0:02:26]} 48. Ke2 {[%emt 0:00:00]} Rb6 {[%emt 0:00:57]} 49. g5 {[%emt 0:00:00]} Ra6 {[%emt 0:01:01]} 50. Rb2 {[%emt 0:00:00]} Kd4 {[%emt 0:01:18]} 51. g6 {[%emt 0:00:00]} Rxg6 {[%emt 0:00:58]} 52. Rb4+ {[%emt 0:00:00]} Kd5 {[%emt 0:01:24]} 53. Ke3 {[%emt 0:00:00]} Rg4 {[%emt 0:03:25]} 54. Rb5+ {[%emt 0:00:00]} Ke6 {[%emt 0:00:25]} 55. Rh5 {[%emt 0:00:00]} Kf6 {[%emt 0:00:24]} 56. Rh4 {[%emt 0:00:00]} Rxh4 {[%emt 0:00:43]} 57. gxh4 {[%emt 0:00:00]} Ke5 {[%emt 0:00:28]} 58. h5 {[%emt 0:00:00]} Kf5 {[%emt 0:00:06]} 59. h6 {[%emt 0:00:00]} Kg6 {[%emt 0:00:08]} 60. Kxe4 {[%emt 0:00:00]} 1-0

[Event "EYTCC U18 Open 2019"]
[Site "Pardubice"]
[Date "2019.07.14"]
[Round "4.31"]
[White "Vrolijk, Liam"]
[Black "Gorshtein, Ido"]
[Result "1/2-1/2"]
[ECO "E11"]
[WhiteElo "2478"]
[BlackElo "2367"]
[Annotator "ChessBase"]
[PlyCount "68"]
[EventDate "2019.07.11"]
[EventType "swiss"]
[EventCountry "CZE"]
[SourceTitle "playchess.com"]
[Source "ChessBase"]
[SourceQuality "1"]
[WhiteTeam "Netherlands"]
[BlackTeam "Israel"]
[WhiteTeamCountry "NED"]
[BlackTeamCountry "ISR"]
[TimeControl "40/5400+30:1800+30"]

1. d4 {[%emt 0:00:00]} Nf6 {[%emt 0:00:00]} 2. c4 {[%emt 0:00:00]} e6 {[%emt 0:00:00]} 3. Nf3 {[%emt 0:00:00]} Bb4+ {[%emt 0:00:00]} 4. Bd2 {[%emt 0:00:15]} Bxd2+ {[%emt 0:00:00]} 5. Qxd2 {[%emt 0:00:08]} O-O {[%emt 0:00:00]} 6. g3 {[%emt 0:00:25]} d6 {[%emt 0:01:05]} 7. Bg2 {[%emt 0:02:31]} Nc6 {[%emt 0:04:08]} 8. Nc3 {[%emt 0:01:33]} e5 {[%emt 0:00:28]} 9. O-O {[%emt 0:01:33]} Bg4 {[%emt 0:12:12]} 10. dxe5 {[%emt 0:01:07]} dxe5 {[%emt 0:12:02]} 11. Qe3 {[%emt 0:00:09]} Re8 {[%emt 0:11:58]} 12. Rad1 {[%emt 0:03:53]} Qe7 {[%emt 0:02:45]} 13. Nd5 {[%emt 0:00:22]} Nxd5 {[%emt 0:00:03]} 14. cxd5 {[%emt 0:00:07]} Bxf3 {[%emt 0:02:00]} 15. Qxf3 {[%emt 0:02:45]} Nd4 {[%emt 0:08:03]} 16. Qd3 {[%emt 0:01:40]} g6 {[%emt 0:07:55]} 17. Rc1 {[%emt 0:04:48]} Qd6 {[%emt 0:09:09]} 18. Rc3 {[%emt 0:06:16]} Re7 {[%emt 0:02:29]} 19. Rfc1 {[%emt 0:04:30]} Rd8 {[%emt 0:03:11]} 20. Be4 {[%emt 0:15:07]} a6 {[%emt 0:04:11]} 21. a4 {[%emt 0:08:40]} Qb6 {[%emt 0:02:49]} 22. e3 {[%emt 0:03:39]} Nc6 {[%emt 0:00:52]} 23. Qc4 {[%emt 0:07:18]} Nb4 {[%emt 0:02:03]} 24. Qb3 {[%emt 0:08:03]} a5 {[%emt 0:03:06]} 25. Rc5 {[%emt 0:00:25]} Rdd7 {[%emt 0:01:53]} 26. Qc4 {[%emt 0:02:20]} Kg7 {[%emt 0:01:09]} 27. Bg2 {[%emt 0:03:06]} h5 {[%emt 0:04:58]} 28. h4 {[%emt 0:03:22]} c6 {[%emt 0:00:47]} 29. dxc6 {[%emt 0:02:18]} bxc6 {[%emt 0:00:03]} 30. Qb3 {[%emt 0:04:55]} Qd8 {[%emt 0:01:01]} 31. Bxc6 {[%emt 0:01:49]} Rd3 {[%emt 0:00:26]} 32. Qc4 {[%emt 0:03:26]} Rd1+ {[%emt 0:01:22]} 33. Kh2 {[%emt 0:00:49]} Rd2 {[%emt 0:00:32]} 34. Kg1 {[%emt 0:02:30]} Rd1+ {[%emt 0:00:33]} 1/2-1/2

[Event "EYTCC U18 Open 2019"]
[Site "Pardubice"]
[Date "2019.07.14"]
[Round "4.32"]
[White "Globus, Or"]
[Black "Van Dael, Siem"]
[Result "1-0"]
[ECO "E68"]
[WhiteElo "2352"]
[BlackElo "2319"]
[Annotator "NA"]
[PlyCount "47"]
[EventDate "2019.07.11"]
[EventType "swiss"]
[EventCountry "CZE"]
[SourceTitle "playchess.com"]
[Source "ChessBase"]
[SourceQuality "1"]
[WhiteTeam "Israel"]
[BlackTeam "Netherlands"]
[WhiteTeamCountry "ISR"]
[BlackTeamCountry "NED"]
[TimeControl "40/5400+30:1800+30"]

1. d4 {[%emt 0:00:00]} Nf6 {[%emt 0:00:00]} 2. c4 {[%emt 0:00:05]} g6 {[%emt 0:00:00]} 3. Nc3 {[%emt 0:00:50]} Bg7 {[%emt 0:00:00]} 4. g3 {[%emt 0:00:16]} O-O {[%emt 0:00:20]} 5. Bg2 {[%emt 0:00:09]} d6 {[%emt 0:00:13]} 6. Nf3 {[%emt 0:00:06]} Nbd7 {[%emt 0:00:16]} 7. O-O {[%emt 0:00:34]} e5 {[%emt 0:00:14]} 8. e4 {[%emt 0:00:19]} Re8 {[%emt 0:01:06]} 9. h3 {[%emt 0:00:36]} exd4 {[%emt 0:00:10]} 10. Nxd4 {[%emt 0:00:05]} a6 {[%emt 0:00:09]} 11. Be3 {[%emt 0:01:08]} Rb8 {[%emt 0:00:35]} 12. b3 {[%emt 0:01:21]} c5 {[%emt 0:07:45]} 13. Nde2 {[%emt 0:04:21]} b5 {[%emt 0:02:50]} 14. Qxd6 {[%emt 0:02:42]} b4 {[%emt 0:03:04]} 15. Na4 {[%emt 0:01:16]} Nxe4 {[%emt 0:14:01]} 16. Bxe4 {[%emt 0:00:09]} Rxe4 {[%emt 0:00:19]} 17. Rad1 {[%emt 0:00:35]} Qe8 {[%emt 0:28:05]} 18. Nf4 {[%emt 0:00:13]} Be5 {[%emt 0:10:01]} 19. Qc6 {[%emt 0:06:36]} Bd4 {[%emt 0:02:38]} 20. Nxc5 {[%emt 0:09:09]} Rxe3 {[%emt 0:07:26]} 21. Rxd4 {[%emt 0:04:11]} Rxg3+ {[%emt 0:02:53]} 22. Ng2 {[%emt 0:05:34]} Rb6 {[%emt 0:18:14]} 23. Qc7 {[%emt 0:03:29]} Rxg2+ {[%emt 0:00:37]} 24. Kxg2 {[%emt 0:00:08]} 1-0